{"text_format":"1","workbook":"xlsx","n_sheets":3,"sheets":["記入について","申込書","Sheet2"],"not_rendered":{"charts":0,"images":1,"macros":1,"external_links":1,"defined_names":2,"comments":0,"pivot_tables":0},"unopened":[],"bounds":{"document_bytes":16777216,"sheet_cells":100000,"rows_first":2000,"rows_last":500,"rows_between":2000,"halvings":0,"cell_chars":16384,"cell_head_chars":4096},"cells_cut":0,"cells_raw":0,"read":"whole","date_system":"1900"}

{"sheet":"記入について","index":0,"n_rows":56,"n_cols":57,"rows_kept":56,"cut":false,"hidden":false,"merged":[[24,32,25,37],[24,38,25,42],[24,43,25,47],[24,48,25,52],[33,54,34,58],[28,38,29,42],[28,43,29,47],[28,48,29,52],[35,48,36,52],[35,54,36,58],[38,30,41,30],[38,31,39,31],[38,32,39,58],[40,31,41,31],[40,32,41,58],[30,30,36,31],[30,32,30,37],[30,38,30,42],[30,43,30,47],[30,48,30,52],[31,32,32,37],[31,38,32,42],[31,43,32,47],[31,48,32,52],[33,32,34,37],[33,38,34,42],[33,43,34,47],[33,48,34,52],[35,32,36,37],[35,38,36,42],[35,43,36,47],[19,54,20,54],[19,55,20,58],[21,30,29,31],[21,32,21,37],[21,38,21,42],[21,43,21,47],[21,48,21,52],[22,32,23,37],[22,38,23,42],[22,43,23,47],[22,48,23,52],[26,32,27,37],[26,38,27,42],[26,43,27,47],[26,48,27,52],[28,32,29,37],[19,42,20,42],[19,43,20,46],[19,47,20,49],[19,50,20,50],[19,51,20,53],[12,30,14,34],[12,35,12,58],[13,35,14,58],[15,30,20,31],[15,32,16,34],[15,35,16,43],[15,44,18,46],[15,47,16,55],[15,56,18,58],[17,32,18,34],[17,35,18,43],[17,47,18,55],[19,32,20,34],[19,35,20,37],[19,38,20,38],[19,39,20,41],[7,30,9,34],[7,36,7,37],[7,39,7,41],[8,35,9,37],[8,39,9,42],[3,1,3,28],[0,30,1,58],[4,30,6,34],[5,35,6,47],[5,48,5,58],[6,48,6,58],[2,30,3,31],[2,32,3,33],[2,34,3,35],[2,36,3,58],[51,30,51,44],[43,30,50,59],[8,46,9,58],[10,30,11,34],[10,35,10,36],[10,38,10,40],[10,42,10,44],[10,46,10,48],[11,35,11,36],[11,38,11,40],[11,42,11,44],[11,46,11,48]]}
[null,null,null,null,null,null,null,null,null,null,null,null,null,null,null,null,null,null,null,null,null,null,null,null,null,null,null,null,null,null,"江田島‟突破„塾 ～限界突破・難関突破～ 　　"]
["【ご入力の前に】"]
[null,null,null,null,null,null,null,null,null,null,null,null,null,null,null,null,null,null,null,null,null,null,null,null,null,null,null,null,null,null,"第",null,1,null,"回",null,"参加申込書"]
["○","このエクセルファイルはマクロ設定がしてあります。ファイルを開くと下図のように"]
[null,"警告が出ますので、コンテンツの有効化をクリックし、マクロを有効にしてください。",null,null,null,null,null,null,null,null,null,null,null,null,null,null,null,null,null,null,null,null,null,null,null,null,null,null,null,null,"団体名\n校名及び\n部活・生徒会名",null,null,null,null,"※合同参加の場合は、相手先の団体名もご記入ください。"]
[null,null,null,null,null,null,null,null,null,null,null,null,null,null,null,null,null,null,null,null,null,null,null,null,null,null,null,null,null,null,null,null,null,null,null,"江田島市立　○○中校　剣道部・野球部",null,null,null,null,null,null,null,null,null,null,null,null,"合同チーム相手先"]
[null,null,null,null,null,null,null,null,null,null,null,null,null,null,null,null,null,null,null,null,null,null,null,null,null,null,null,null,null,null,null,null,null,null,null,null,null,null,null,null,null,null,null,null,null,null,null,null,"広島市立　△△中学校　生徒会"]
[null,null,null,null,null,null,null,null,null,null,null,null,null,null,null,null,null,null,null,null,null,null,null,null,null,null,null,null,null,null,"住所",null,null,null,null,"〒",737,null,"―",2126]
[null,null,null,null,null,null,null,null,null,null,null,null,null,null,null,null,null,null,null,null,null,null,null,null,null,null,null,null,null,null,null,null,null,null,null,"広島",null,null,null,"江田島",null,null,null,null,null,null,"江田島町津久茂1-1-1"]
[null,null,null,null,null,null,null,null,null,null,null,null,null,null,null,null,null,null,null,null,null,null,null,null,null,null,null,null,null,null,null,null,null,null,null,null,null,null,"県",null,null,null,null,"市","町","村"]
[null,null,null,null,null,null,null,null,null,null,null,null,null,null,null,null,null,null,null,null,null,null,null,null,null,null,null,null,null,null,"電話番号・FAX",null,null,null,null,"TEL：",null,"（","0823",null,null,"）","42",null,null,"―","0661"]
[null,null,null,null,null,null,null,null,null,null,null,null,null,null,null,null,null,null,null,null,null,null,null,null,null,null,null,null,null,null,null,null,null,null,null,"FAX：",null,"（","0823",null,null,"）","42",null,null,"―","0664"]
[null,null,null,null,null,null,null,null,null,null,null,null,null,null,null,null,null,null,null,null,null,null,null,null,null,null,null,null,null,null,"メールアドレス",null,null,null,null,"※常時、担当教職員で確認できるアドレスをご記入ください。（PDF閲覧・Excelの可能なﾊﾟｿｺﾝのもの）"]
[null,null,null,null,null,null,null,null,null,null,null,null,null,null,null,null,null,null,null,null,null,null,null,null,null,null,null,null,null,null,null,null,null,null,null,"etajima-kikaku@niye.go.jp"]
[]
[null,null,null,null,null,null,null,null,null,null,null,null,null,null,null,null,null,null,null,null,null,null,null,null,null,null,null,null,null,null,"代表者",null,"氏名",null,null,"江田島　太郎",null,null,null,null,null,null,null,null,"男・女",null,null,"広島　安芸子",null,null,null,null,null,null,null,null,"男・女"]
["※","ファイルを開いて上図の警告が表示されない場合"]
[null,"　ファイル → オプション → セキュリティーセンター → セキュリティーセンターの設定",null,null,null,null,null,null,null,null,null,null,null,null,null,null,null,null,null,null,null,null,null,null,null,null,null,null,null,null,null,null,"フリガナ",null,null,"エタジマ　タロウ",null,null,null,null,null,null,null,null,null,null,null,"ヒロシマ　アキコ"]
[null,"　→ マクロの設定 → 上から2番目の「警告を表示してすべてのマクロを無効にする(D)」を選択"]
[null,"　→ OK",null,null,null,null,null,null,null,null,null,null,null,null,null,null,null,null,null,null,null,null,null,null,null,null,null,null,null,null,null,null,"携帯番号",null,null,"○○○",null,null,"―","△△△",null,null,"―","□□□□",null,null,null,"○○○",null,null,"―","△△△",null,null,"―","□□□□"]
[]
[null,null,null,null,null,null,null,null,null,null,null,null,null,null,null,null,null,null,null,null,null,null,null,null,null,null,null,null,null,null,"参加生徒数",null,null,null,null,null,null,null,"男子",null,null,null,null,"女子",null,null,null,null,"計"]
[null,null,null,null,null,null,null,null,null,null,null,null,null,null,null,null,null,null,null,null,null,null,null,null,null,null,null,null,null,null,null,null,"１年",null,null,null,null,null,5,null,null,null,null,4,null,null,null,null,{"$f":"SUM(AM23:AV24)","v":9}]
[]
[null,null,null,null,null,null,null,null,null,null,null,null,null,null,null,null,null,null,null,null,null,null,null,null,null,null,null,null,null,null,null,null,"２年",null,null,null,null,null,3,null,null,null,null,2,null,null,null,null,{"$f":"SUM(AM25:AV26)","v":5}]
[]
[null,null,null,null,null,null,null,null,null,null,null,null,null,null,null,null,null,null,null,null,null,null,null,null,null,null,null,null,null,null,null,null,"３年",null,null,null,null,null,7,null,null,null,null,2,null,null,null,null,{"$f":"SUM(AM27:AV28)","v":9}]
[]
[null,null,null,null,null,null,null,null,null,null,null,null,null,null,null,null,null,null,null,null,null,null,null,null,null,null,null,null,null,null,null,null,"計",null,null,null,null,null,{"$f":"SUM(AM23:AQ28)","v":15},null,null,null,null,{"$f":"SUM(AR23:AV28)","v":8},null,null,null,null,{"$f":"SUM(AM23:AV28)","v":23}]
[]
[null,null,null,null,null,null,null,null,null,null,null,null,null,null,null,null,null,null,null,null,null,null,null,null,null,null,null,null,null,null,"引率者数",null,null,null,null,null,null,null,"男性",null,null,null,null,"女性",null,null,null,null,"計"]
[null,null,null,null,null,null,null,null,null,null,null,null,null,null,null,null,null,null,null,null,null,null,null,null,null,null,null,null,null,null,null,null,"教職員\n（上記教職員を含む）",null,null,null,null,null,1,null,null,null,null,1,null,null,null,null,{"$f":"SUM(AM32:AV33)","v":2}]
[]
[null,null,null,null,null,null,null,null,null,null,null,null,null,null,null,null,null,null,null,null,null,null,null,null,null,null,null,null,null,null,null,null,"保護者",null,null,null,null,null,3,null,null,null,null,2,null,null,null,null,{"$f":"SUM(AM34:AV35)","v":5},null,null,null,null,null,"合計"]
[]
[null,null,null,null,null,null,null,null,null,null,null,null,null,null,null,null,null,null,null,null,null,null,null,null,null,null,null,null,null,null,null,null,"計",null,null,null,null,null,{"$f":"SUM(AM32:AQ35)","v":4},null,null,null,null,{"$f":"SUM(AR32:AV35)","v":3},null,null,null,null,{"$f":"SUM(AM32:AV35)","v":7},null,null,null,null,null,{"$f":"AW29+AW36","v":30}]
[]
[]
[null,null,null,null,null,null,null,null,null,null,null,null,null,null,null,null,null,null,null,null,null,null,null,null,null,null,null,null,null,null,"交通手段","行き","２．切串（西沖）港から無料送迎バスを利用する。\n　　【広島（宇品）港からフェリーを利用する場合】"]
[]
[null,null,null,null,null,null,null,null,null,null,null,null,null,null,null,null,null,null,null,null,null,null,null,null,null,null,null,null,null,null,null,"帰り","２．切串（西沖）港まで無料送迎バスを利用する。\n　　【広島（宇品）港行きフェリーを利用する場合】"]
[]
[]
[null,null,null,null,null,null,null,null,null,null,null,null,null,null,null,null,null,null,null,null,null,null,null,null,null,null,null,null,null,null,"※　ご記入いただいた個人情報は，「独立行政法人国立青少年教育振興機構が保有する個人情報の適切な管理に関する規程」等に基づき適切に管理し，この事業に関する事務のみに使用し，法令等に定める場合を除いて第三者に開示することはありません。\n本事業で職員等が撮影した写真や映像，制作物，感想文等の著作物を，当機構及び江田島市の広報等に使用する目的で，報告書や刊行物，インターネット（ソーシャルメディアサービスを含む）等に掲載することがあります。また，新聞社，雑誌社等が発行する刊行物やインターネット（以下，「印刷物等」）に記事・写真を掲載することもあります。 なお，当機構がインターネット上に公開した肖像及び著作物について，本人（又は保護者）から削除依頼を受けた場合は速やかに削除します。ただし，機構発行の印刷物並びに機構以外の者が発行・運営する印刷物等については対応できかねますのでご了承ください。\n"]
[]
[]
[]
[]
[]
[]
[]
[null,null,null,null,null,null,null,null,null,null,null,null,null,null,null,null,null,null,null,null,null,null,null,null,null,null,null,null,null,null,"承諾する　　・　　承諾しない",null,null,null,null,null,null,null,null,null,null,null,null,null,null,"←どちらかを選択してください。"]
[null,null,null,null,null,null,null,null,null,null,null,null,null,null,null,null,null,null,null,null,null,null,null,null,null,null,null,null,null,null,"※ご承諾いただけない場合は、事前に事業担当者へご相談ください。"]
[]
[null,null,null,null,null,null,null,null,null,null,null,null,null,null,null,null,null,null,null,null,null,null,null,null,null,null,null,null,null,null,null,"【申込先】",null,null,null,"国立江田島青少年交流の家"]
[null,null,null,null,null,null,null,null,null,null,null,null,null,null,null,null,null,null,null,null,null,null,null,null,null,null,null,null,null,null,null,null,null,null,null,null,null,null,null,null,"メール：etajima-kikaku@niye.go.jp",null,null,null,null,null,null,null,null,null,null,null,null,null,"担当：井口・葉山"]

{"sheet":"申込書","index":1,"n_rows":56,"n_cols":41,"rows_kept":56,"cut":false,"hidden":false,"merged":[[0,0,1,28],[4,0,6,4],[5,5,6,17],[5,18,5,28],[6,18,6,28],[24,2,25,7],[24,8,25,12],[24,13,25,17],[24,18,25,22],[8,16,9,28],[7,0,9,4],[7,6,7,7],[7,9,7,11],[8,5,9,7],[8,9,9,12],[10,0,11,4],[10,5,10,6],[10,8,10,10],[10,12,10,14],[10,16,10,18],[11,5,11,6],[15,0,20,1],[15,2,16,4],[15,5,16,13],[15,14,18,16],[15,17,16,25],[11,8,11,10],[11,12,11,14],[11,16,11,18],[12,0,14,4],[12,5,12,28],[13,5,14,28],[26,8,27,12],[26,13,27,17],[26,18,27,22],[28,2,29,7],[28,13,29,17],[28,18,29,22],[15,26,18,28],[17,2,18,4],[17,5,18,13],[17,17,18,25],[19,2,20,4],[19,5,20,7],[19,8,20,8],[19,9,20,11],[19,12,20,12],[19,13,20,16],[19,17,20,19],[19,20,20,20],[19,21,20,23],[19,24,20,24],[19,25,20,28],[51,0,51,14],[49,31,51,39],[38,0,41,0],[38,1,39,1],[38,2,39,28],[40,1,41,1],[40,2,41,28],[27,24,27,25],[27,26,27,28],[28,26,28,28],[35,2,36,7],[35,8,36,12],[35,13,36,17],[35,18,36,22],[35,24,36,28],[31,8,32,12],[31,13,32,17],[31,18,32,22],[33,2,34,7],[33,8,34,12],[33,13,34,17],[33,18,34,22],[28,8,29,12],[30,0,36,1],[9,36,10,37],[9,38,10,39],[9,40,10,41],[2,0,3,1],[2,2,3,3],[2,4,3,5],[2,6,3,28],[33,24,34,28],[43,0,50,29],[30,2,30,7],[30,8,30,12],[30,13,30,17],[30,18,30,22],[31,2,32,7],[21,0,29,1],[21,2,21,7],[21,8,21,12],[21,13,21,17],[21,18,21,22],[22,2,23,7],[22,8,23,12],[22,13,23,17],[22,18,23,22],[26,2,27,7]]}
["江田島‟突破„塾 ～限界突破・難関突破～ 　　"]
[]
["第",null,null,null,"回",null,"参加申込書"]
[]
["団体名\n校名及び\n部活・生徒会名",null,null,null,null,"※合同参加の場合は、相手先の団体名もご記入ください。"]
[null,null,null,null,null,null,null,null,null,null,null,null,null,null,null,null,null,null,"合同学校先"]
[]
["住所",null,null,null,null,"〒",null,null,"―"]
[]
[null,null,null,null,null,null,null,null,"県",null,null,null,null,"市","町","村",null,null,null,null,null,null,null,null,null,null,null,null,null,null,null,null,null,null,null,null,"第",null,"１",null,"回"]
["電話番号・FAX",null,null,null,null,"TEL：",null,"（",null,null,null,"）",null,null,null,"―"]
[null,null,null,null,null,"FAX：",null,"（",null,null,null,"）",null,null,null,"―"]
["メールアドレス",null,null,null,null,"※常時、担当教職員で確認できるアドレスをご記入ください。（PDF閲覧・Excelの可能なﾊﾟｿｺﾝのもの）"]
[]
[]
["代表者",null,"氏名",null,null,null,null,null,null,null,null,null,null,null,"男・女",null,null,null,null,null,null,null,null,null,null,null,"男・女"]
[]
[null,null,"フリガナ"]
[]
[null,null,"携帯番号",null,null,null,null,null,"―",null,null,null,"―",null,null,null,null,null,null,null,"―",null,null,null,"―"]
[]
["参加生徒数",null,null,null,null,null,null,null,"男子",null,null,null,null,"女子",null,null,null,null,"計"]
[null,null,"１年",null,null,null,null,null,null,null,null,null,null,null,null,null,null,null,{"$f":"SUM(I23:R24)","v":0}]
[]
[null,null,"２年",null,null,null,null,null,null,null,null,null,null,null,null,null,null,null,{"$f":"SUM(I25:R26)","v":0}]
[]
[null,null,"３年",null,null,null,null,null,null,null,null,null,null,null,null,null,null,null,{"$f":"SUM(I27:R28)","v":0}]
[null,null,null,null,null,null,null,null,null,null,null,null,null,null,null,null,null,null,null,null,null,null,null,null,null,null,"にご入力"]
[null,null,"計",null,null,null,null,null,{"$f":"SUM(I23:M28)","v":0},null,null,null,null,{"$f":"SUM(N23:R28)","v":0},null,null,null,null,{"$f":"SUM(I23:R28)","v":0},null,null,null,null,null,null,null,"ください"]
[]
["引率者数",null,null,null,null,null,null,null,"男性",null,null,null,null,"女性",null,null,null,null,"計"]
[null,null,"教職員\n（上記教職員を含む）",null,null,null,null,null,null,null,null,null,null,null,null,null,null,null,{"$f":"SUM(I32:R33)","v":0}]
[]
[null,null,"保護者",null,null,null,null,null,null,null,null,null,null,null,null,null,null,null,{"$f":"SUM(I34:R35)","v":0},null,null,null,null,null,"合計"]
[]
[null,null,"計",null,null,null,null,null,{"$f":"SUM(I32:M35)","v":0},null,null,null,null,{"$f":"SUM(N32:R35)","v":0},null,null,null,null,{"$f":"SUM(I32:R35)","v":0},null,null,null,null,null,{"$f":"S29+S36","v":0}]
[]
[]
["交通手段","行き"]
[]
[null,"帰り"]
[]
[]
["※　ご記入いただいた個人情報は，「独立行政法人国立青少年教育振興機構が保有する個人情報の適切な管理に関する規程」等に基づき適切に管理し，この事業に関する事務のみに使用し，法令等に定める場合を除いて第三者に開示することはありません。\n本事業で職員等が撮影した写真や映像，制作物，感想文等の著作物を，当機構及び江田島市の広報等に使用する目的で，報告書や刊行物，インターネット（ソーシャルメディアサービスを含む）等に掲載することがあります。また，新聞社，雑誌社等が発行する刊行物やインターネット（以下，「印刷物等」）に記事・写真を掲載することもあります。 なお，当機構がインターネット上に公開した肖像及び著作物について，本人（又は保護者）から削除依頼を受けた場合は速やかに削除します。ただし，機構発行の印刷物並びに機構以外の者が発行・運営する印刷物等については対応できかねますのでご了承ください。\n"]
[]
[]
[]
[]
[]
[null,null,null,null,null,null,null,null,null,null,null,null,null,null,null,null,null,null,null,null,null,null,null,null,null,null,null,null,null,null,null,"左記の個人情報等の承諾の選択をお忘れなく！！"]
[]
["承諾する　　・　　承諾しない",null,null,null,null,null,null,null,null,null,null,null,null,null,null,"←どちらかを選択してください。"]
["※ご承諾いただけない場合は、事前に事業担当者へご相談ください。"]
[]
[null,"【申込先】",null,null,null,"国立江田島青少年交流の家"]
[null,null,null,null,null,null,null,null,null,null,"メール：etajima-kikaku@niye.go.jp",null,null,null,null,null,null,null,null,null,null,null,null,null,"担当：井口・葉山"]

{"sheet":"Sheet2","index":2,"n_rows":10,"n_cols":3,"rows_kept":10,"cut":false,"hidden":true,"merged":[]}
[]
[null,null,"１．無料送迎バスを利用しないで江田島青少年交流の家へ直接行く。"]
[null,null,"２．切串（西沖）港から無料送迎バスを利用する。\n　　【広島（宇品）港からフェリーを利用する場合】"]
[null,null,"３．切串（吹越）港から無料送迎バスを利用する。\n　　【呉ポートピア港からフェリーを利用する場合】"]
[null,null,"４．小用港から無料送迎バスを利用する。【呉中央桟橋からフェリーを利用する場合】"]
[]
[null,null,"１．無料送迎バスを利用しないで江田島青少年交流の家から直接帰る。"]
[null,null,"２．切串（西沖）港まで無料送迎バスを利用する。\n　　【広島（宇品）港行きフェリーを利用する場合】"]
[null,null,"３．切串（吹越）港まで無料送迎バスを利用する。\n　　【呉ポートピア港行きフェリーを利用する場合】"]
[null,null,"４．小用港まで無料送迎バスを利用する。【呉中央桟橋行きフェリーを利用する場合】"]